bitfinex/quotes_ETHUSD_20220109
["timestamp","ask_amount","ask_price","bid_price","bid_amount"]
[1641692185956,0.00795793,3100.9,3099.9,0.01053558]
[1641692186359,0.00795793,3100.9,3100.1,0.65880447]
[1641692186605,0.13195793,3100.9,3100.1,0.65880447]
[1641692186803,0.80667,3100.4,3100.1,0.65880447]
[1641692187005,0.80667,3100.4,3100.2,0.01053558]
[1641692187205,0.00454739,3100.3,3100.2,0.01053558]
[1641692188805,2.41985,3101.5,3100.4,0.00575386]
[1641692189007,5.43981724,3101.6,3100.4,0.00575386]
[1641692189008,5.4277,3101.6,3101.2,1.1031474]
[1641692189206,0.4448578,3102.0,3101.2,2.0707474]
[1641692189207,0.00625265,3101.4,3101.2,2.0707474]
[1641692189608,0.00593809,3102.4,3101.2,2.0707474]
[1641692190008,0.465,3102.5,3101.8,0.60482181]
[1641692190009,0.00341054,3101.9,3101.8,0.60482181]
[1641692190460,0.1208,3102.4,3101.8,0.60482181]
[1641692190461,0.00625266,3102.4,3101.8,0.60482181]
[1641692190757,0.465,3102.5,3101.8,0.60482181]
[1641692190758,0.00568423,3102.3,3101.8,0.60482181]
[1641692190963,0.80628,3102.0,3101.8,0.60482181]
[1641692191162,0.80628,3102.0,3101.3,3.89243558]
[1641692191361,0.80628,3102.0,3101.3,0.01053558]
[1641692191560,0.00511581,3102.2,3101.3,0.01053558]
[1641692191960,0.00454739,3102.1,3101.3,0.01053558]
[1641692192160,0.00454739,3102.1,3101.9,0.71777504]
[1641692192363,0.00397896,3102.0,3101.3,0.01053558]
[1641692192761,0.80628,3102.0,3101.3,0.01053558]
[1641692193363,0.80628,3102.0,3101.7,0.69243441]
[1641692193762,0.75628,3102.0,3101.2,0.01053558]
[1641692194501,0.75628,3102.0,3101.3,0.80622]
[1641692194701,0.75628,3102.0,3101.5,0.66315813]
[1641692195000,0.75628,3102.0,3101.2,0.81676188]
[1641692195001,0.75628,3102.0,3101.2,0.01053558]
[1641692195901,0.80641,3101.6,3101.2,0.01053558]
[1641692196301,0.00113685,3101.5,3101.2,0.01053558]
[1641692196504,0.00113685,3101.5,3100.7,1.64049224]
[1641692196505,4.8,3101.4,3100.7,1.64049224]
[1641692196703,3.77336787,3101.3,3100.7,1.64049224]
[1641692196901,3.77336787,3101.3,3100.6,1.64049224]
[1641692196902,5.57374956,3101.3,3100.6,1.64049224]
[1641692197104,5.57374956,3101.3,3100.1,2.34286649]
[1641692197105,0.80667,3101.0,3100.1,2.34286649]
[1641692197304,4.8,3100.8,3100.0,1.64049224]
[1641692197505,0.465,3100.7,3100.0,1.64049224]
[1641692197756,4.18819539,3100.7,3100.2,0.00284212]
[1641692197948,4.8,3100.5,3099.8,1.64049224]
[1641692198152,0.1336,3100.6,3099.8,1.64049224]
[1641692198153,1.61378,3100.2,3099.8,1.64049224]
[1641692198349,1.61378,3100.2,3099.9,0.00170527]
[1641692198748,1.61378,3100.2,3099.8,0.00227369]
[1641692198950,0.80689,3100.2,3099.8,0.00227369]
[1641692199349,0.80689,3100.2,3099.7,0.00284212]
[1641692199550,0.80689,3100.2,3099.7,1.64049224]
[1641692199950,0.80689,3100.2,3099.8,1.64276593]
[1641692200452,0.80689,3100.2,3099.8,0.00227369]
[1641692200851,0.80689,3100.2,3099.8,1.64276593]
[1641692202198,0.80689,3100.2,3099.9,1.64049224]
[1641692202399,0.92849,3100.2,3099.9,1.64049224]
[1641692202598,0.92849,3100.2,3100.0,0.00113685]
[1641692202599,0.78776155,3100.2,3100.0,0.00113685]
[1641692203601,0.78776155,3100.2,3100.0,1.64162909]
[1641692204002,0.00170527,3100.5,3100.0,2.70767734]
[1641692204200,0.00170527,3100.5,3100.2,0.80649]
[1641692204400,0.00113685,3100.4,3100.2,0.80649]
[1641692204602,0.00113685,3100.4,3100.2,1.40649]
[1641692204800,0.00682108,3101.4,3100.9,1.03408751]
[1641692205001,0.00682108,3101.4,3100.9,1.79428751]
[1641692205257,0.00625266,3101.3,3100.9,1.79428751]
[1641692205454,0.81263266,3101.3,3100.9,2.39428751]
[1641692205654,0.00568424,3101.2,3101.0,1.62567404]
[1641692206055,0.00511581,3101.1,3101.0,1.62567404]
[1641692206456,0.00511581,3101.1,3101.0,0.8062967]
[1641692206655,1.61256,3101.9,3101.4,1.35953411]
[1641692207057,0.5946,3102.5,3101.4,1.35953411]
[1641692207257,0.465,3102.5,3102.3,0.74791357]
[1641692207457,0.00113684,3102.0,3101.5,3.78100527]
[1641692207658,0.00113684,3102.0,3101.5,0.00170527]
[1641692207857,0.00113684,3102.0,3101.6,1.62660617]
[1641692208056,0.00113684,3102.0,3101.5,0.00170527]
[1641692208057,0.80622,3101.8,3101.5,0.00170527]
[1641692208560,0.80622,3101.8,3101.5,1.62717459]
[1641692208755,0.80622,3101.8,3101.6,1.62546932]
[1641692209007,0.80622,3101.8,3101.7,0.64208058]
[1641692209807,0.80622,3101.8,3101.7,1.62950121]
[1641692210408,0.80622,3101.8,3101.6,0.00113685]
[1641692210810,0.80622,3101.8,3101.7,1.62872563]
[1641692211213,0.80622,3101.8,3101.4,2.41246792]
[1641692211409,0.80622,3101.8,3101.4,3.01246792]
[1641692211611,0.80622,3101.8,3101.5,1.6304309]
[1641692212008,0.80622,3101.8,3101.6,0.00113685]
[1641692212209,0.80622,3101.8,3101.6,1.62986248]
[1641692212409,0.80622,3101.8,3101.6,0.00113685]
[1641692212856,0.80622,3101.8,3101.5,0.00170527]
[1641692215151,0.80622,3101.8,3101.7,1.63020273]
[1641692215454,4.90622,3101.8,3101.7,1.63020273]
[1641692215853,4.90622,3101.8,3101.5,0.00170527]
[1641692216253,4.90622,3101.8,3101.4,0.0022737]
[1641692216504,4.90622,3101.8,3101.4,1.63247643]
[1641692216702,4.90622,3101.8,3101.5,0.82622153]
[1641692216902,4.90622,3101.8,3101.5,0.8279268]
[1641692217102,4.90622,3101.8,3101.6,0.00113685]
[1641692217501,4.90622,3101.8,3101.5,0.00170527]
[1641692218009,1.0,3101.7,3101.5,0.00170527]
[1641692218204,4.8,3101.5,3101.4,1.63020273]
[1641692218405,7.21968,3101.5,3101.4,1.63020273]
[1641692218604,8.21968,3101.5,3101.4,1.63020273]
[1641692218806,4.8,3101.4,3100.5,4.03484528]
[1641692219010,5.60657,3101.4,3100.5,4.03484528]
[1641692219205,5.60657,3101.4,3100.6,0.00511581]
[1641692219905,0.80658,3101.0,3100.7,0.75486475]
[1641692220351,0.80658,3101.0,3100.8,0.00397897]
[1641692222156,1.61315,3101.1,3100.8,0.00397897]
[1641692222555,1.465,3101.7,3100.8,0.00397897]
[1641692222756,0.80658,3101.0,3100.8,0.00397897]
[1641692223556,1.61276,3101.4,3100.8,0.30397897]
[1641692223755,1.61276,3101.4,3100.8,0.00397897]
[1641692224004,1.61276,3101.4,3100.9,0.00341054]
[1641692224208,0.80636,3101.2,3101.1,1.05983489]
[1641692224405,8.41575,3101.9,3101.1,1.05983489]
[1641692224605,2.41925,3101.9,3101.1,1.06210859]
[1641692224804,0.00170527,3101.8,3101.2,0.00170527]
[1641692225205,0.00113684,3101.7,3101.2,0.00170527]
[1641692225404,0.00113684,3101.7,3101.2,0.80796007]
[1641692225605,0.80625,3101.6,3101.2,0.00170527]
[1641692230052,0.77039616,3101.7,3101.2,0.00170527]
[1641692230250,0.77039616,3101.7,3101.1,0.0022737]
[1641692231254,0.80633,3101.4,3101.1,0.0022737]
[1641692233802,0.77039616,3101.7,3101.2,4.8]
[1641692234006,0.00170527,3101.8,3101.3,2.55677266]
[1641692234305,6.16,3102.8,3101.3,2.55677266]
[1641692234306,0.00113684,3101.7,3101.5,0.8060821]
[1641692234504,0.00113684,3101.7,3101.6,8.67994302]
[1641692234707,0.00682108,3102.7,3101.6,9.27994302]
[1641692234906,1.61191,3103.0,3102.6,0.60985011]
[1641692235106,1.61191,3103.0,3102.6,1.63425011]
[1641692235359,0.00795793,3102.9,3102.6,1.0244]
[1641692235659,0.0073895,3102.8,3102.6,1.0244]
[1641692236059,0.00682108,3102.7,3102.6,1.0244]
[1641692236257,0.00682108,3102.7,3102.6,3.48677609]
[1641692236459,0.0073895,3102.7,3102.6,1.0244]
[1641692236659,0.0073895,3102.7,3102.2,2.36900269]
[1641692236858,0.8133295,3102.7,3102.2,2.66900269]
[1641692237059,0.00625265,3102.6,3102.3,1.0]
[1641692237263,0.00625265,3102.6,3102.4,2.45136962]
[1641692237460,0.00568423,3102.5,3102.4,2.75136962]
[1641692237661,0.00568423,3102.5,3102.4,4.20471]
[1641692237861,0.01080004,3102.5,3102.4,5.0005599]
[1641692238862,0.01080004,3102.5,3102.4,4.9505599]
[1641692239102,0.01080004,3102.5,3102.4,3.24721952]
[1641692239308,0.01080004,3102.5,3102.0,2.81906152]
[1641692239507,0.01242473,3103.1,3102.0,1.63746152]
[1641692239508,0.465,3102.9,3102.0,1.63746152]
[1641692239702,0.465,3102.9,3102.1,0.0073895]
[1641692240503,1.61247,3102.8,3102.1,0.0073895]
[1641692240703,1.27115,3102.9,3102.1,0.0073895]
[1641692240704,1.61222,3102.5,3102.1,0.0073895]
[1641692242207,0.8061,3102.6,3102.1,3.5077914]
[1641692242609,0.8061,3102.6,3102.2,0.00682108]
[1641692243056,0.8061,3102.6,3102.2,0.81280108]
[1641692243253,0.8061,3102.6,3102.2,0.00682108]
[1641692243452,0.8061,3102.6,3102.3,0.00625266]
[1641692243653,0.8061,3102.6,3102.1,0.0073895]
[1641692244654,0.8061,3102.6,3102.1,2.33076875]
[1641692245055,0.8061,3102.6,3102.2,0.00682108]
[1641692246055,0.8061,3102.6,3101.9,0.00852635]
[1641692247607,0.8061,3102.6,3101.9,2.36717593]
[1641692247812,0.8061,3102.6,3101.9,0.00852635]
[1641692248005,0.8061,3102.6,3101.7,1.63746152]
[1641692248006,0.8061,3102.6,3102.0,0.00795793]
[1641692248205,0.8061,3102.6,3101.8,0.00909477]
[1641692248606,0.8061,3102.6,3101.8,1.64655629]
[1641692249007,0.8061,3102.6,3101.9,0.00852635]
[1641692249405,0.8061,3102.6,3102.0,0.67719629]
[1641692249607,0.6561,3102.6,3102.0,0.67719629]
[1641692249807,0.6561,3102.6,3102.1,0.0073895]
[1641692250955,0.6561,3102.6,3102.1,1.28928802]
[1641692251155,0.6561,3102.6,3102.2,2.32083936]
[1641692251355,0.6561,3102.6,3102.2,2.32766044]
[1641692251555,0.6561,3102.6,3102.3,0.00625266]
[1641692251955,0.6561,3102.6,3102.2,0.00682108]
[1641692252956,0.6561,3102.6,3102.3,0.8059712]
[1641692253157,0.80592,3102.8,3102.4,2.37304034]
[1641692253456,0.80592,3102.8,3102.5,0.00511581]
[1641692254404,0.80592,3102.8,3102.4,0.00568423]
[1641692254805,0.65592,3102.8,3102.4,2.35189401]
[1641692255005,0.65592,3102.8,3102.6,1.29355631]
[1641692255205,0.65592,3102.8,3102.7,2.31158093]
[1641692255410,1.61172,3103.3,3102.7,2.31555989]
[1641692255604,1.0,3103.5,3102.7,0.00397896]
[1641692255805,1.27639994,3103.6,3102.8,0.00341054]
[1641692256004,0.27639994,3103.6,3102.7,0.00397896]
[1641692256206,0.9268038,3103.5,3102.7,0.00397896]
[1641692256406,0.80592,3103.2,3102.7,0.00397896]
[1641692256606,0.80592,3103.2,3102.5,0.00511581]
[1641692257007,1.61195,3103.2,3102.4,0.00568423]
[1641692257209,1.61201,3102.9,3102.3,0.00625266]
[1641692257406,1.61201,3102.9,3102.4,0.86033366]
[1641692257608,0.806,3102.6,3102.4,0.85464943]
[1641692257855,1.61201,3102.9,3102.5,0.00511581]
[1641692258056,1.0,3103.5,3102.5,2.3208476]
[1641692258254,1.61181,3103.2,3102.5,2.3942196]
[1641692258452,1.61181,3103.2,3102.6,0.00454739]
[1641692258653,1.61181,3103.2,3102.6,0.81042739]
[1641692258852,1.61181,3103.2,3102.6,0.00454739]
[1641692259052,1.61181,3103.2,3102.7,0.00397896]
[1641692259252,1.61181,3103.2,3102.6,0.00454739]
[1641692259455,1.61195,3102.9,3102.6,0.00454739]
[1641692259854,1.27639994,3103.6,3102.6,0.00454739]
[1641692260253,0.27639994,3103.6,3102.6,1.36308513]
[1641692260456,1.61178,3103.2,3102.7,2.31765299]
[1641692260658,1.61178,3103.2,3102.7,0.00397896]
[1641692260856,1.61178,3103.2,3102.8,0.00341054]
[1641692261056,1.61178,3103.2,3102.7,2.31286209]
[1641692261255,1.61178,3103.2,3102.8,0.00341054]
[1641692261704,1.61178,3103.2,3102.7,0.80984406]
[1641692261909,0.80589,3103.1,3102.7,0.80984406]
[1641692262106,0.80589,3103.1,3102.8,0.00341054]
[1641692263706,0.80589,3103.1,3102.5,0.00511581]
[1641692266161,0.80589,3103.1,3102.5,2.36544432]
[1641692266363,0.80589,3103.1,3102.5,0.00511581]
[1641692266563,0.80589,3103.1,3102.6,0.00454739]
[1641692266761,0.80589,3103.1,3102.5,0.00511581]
[1641692266965,0.80589,3103.1,3102.5,1.61694771]
[1641692267264,0.80589,3103.1,3102.6,0.00454739]
[1641692268363,0.80589,3103.1,3102.6,0.81042739]
[1641692268565,0.80589,3103.1,3102.7,2.3465462]
[1641692268763,0.80589,3103.1,3102.7,2.35052516]
[1641692269003,0.80589,3103.1,3102.8,0.00341054]
[1641692269803,0.75589,3103.1,3103.0,1.40851437]
[1641692270006,1.27091,3103.8,3103.0,1.40851437]
[1641692270007,6.0033,3104.0,3103.0,4.72578665]
[1641692270207,0.9356877,3104.3,3103.2,4.8]
[1641692270408,0.00113685,3103.6,3103.5,1.23023212]
[1641692270605,0.00113685,3103.6,3103.5,3.98871593]
[1641692270805,0.88682455,3104.3,3103.6,0.8056301]
[1641692271007,0.88682455,3104.3,3103.7,2.42660754]
[1641692271213,0.00341054,3104.2,3103.9,0.62461405]
[1641692271409,0.80899054,3104.2,3103.9,0.62461405]
[1641692271611,0.00284212,3104.1,3103.9,0.62461405]
[1641692271806,0.00284212,3104.1,3103.8,0.2065]
[1641692272007,0.88682455,3104.3,3103.0,3.6790314]
[1641692272008,0.00227369,3104.0,3103.4,2.32148169]
[1641692272207,0.00227369,3104.0,3103.2,4.09471689]
[1641692272408,0.00170527,3103.9,3103.2,5.69471689]
[1641692272608,0.00170527,3103.9,3103.3,0.00170527]
[1641692272862,0.88682455,3104.3,3103.7,0.81279945]
[1641692272863,0.00113685,3103.8,3103.7,0.81279945]
[1641692274060,0.00113685,3103.8,3103.4,0.80565]
[1641692274861,0.80571,3103.7,3103.3,0.00170527]
[1641692276258,1.10571,3103.7,3103.3,0.00170527]
[1641692276507,1.10571,3103.7,3103.2,0.00227369]
[1641692276706,0.80594,3103.5,3103.2,0.00227369]
[1641692277108,0.87653836,3103.5,3103.2,0.00227369]
[1641692277808,0.87653836,3103.5,3102.8,2.4845704]
[1641692278209,0.87653836,3103.5,3102.9,1.64144048]
[1641692278608,0.87653836,3103.5,3103.0,0.00341054]
[1641692279209,0.87653836,3103.5,3103.0,3.947817]
[1641692279410,0.87653836,3103.5,3103.0,1.64087206]
[1641692279610,0.87653836,3103.5,3103.1,0.00284212]
[1641692281268,0.87653836,3103.5,3103.1,1.64030364]
[1641692281670,0.87653836,3103.5,3103.2,0.00227369]
[1641692282467,0.87653836,3103.5,3103.1,0.00284212]
[1641692283268,0.87653836,3103.5,3103.0,0.00341054]
[1641692285707,1.17653836,3103.5,3103.0,0.00341054]
[1641692285909,0.80606,3103.3,3103.0,0.00341054]
[1641692286108,4.8,3103.2,3102.9,7.206e-05]
[1641692286308,4.8,3103.2,3102.1,2.5554102]
[1641692286309,4.87156064,3103.2,3102.1,2.5554102]
[1641692286508,4.92433685,3103.2,3102.1,2.5554102]
[1641692286710,2.80432379,3103.1,3102.2,0.00454739]
[1641692286910,0.80613,3102.8,3102.2,0.00454739]
[1641692287108,0.80611,3102.5,3102.2,0.00454739]
[1641692287307,0.80611,3102.5,3102.3,0.75827765]
[1641692287766,0.80611,3102.5,3102.4,0.00341054]
[1641692288158,1.61221,3102.6,3102.5,1.61222]
[1641692288359,1.61221,3102.6,3102.0,0.00568424]
[1641692288559,1.61221,3102.6,3102.5,0.00284212]
[1641692288758,1.61191,3102.9,3102.3,0.6178376]
[1641692289160,1.61191,3102.9,3102.4,0.00341054]
[1641692290158,1.61191,3102.9,3102.3,0.00397897]
[1641692290459,1.61209,3102.6,3102.3,0.00397897]
[1641692290859,1.36209,3102.6,3102.1,0.00511581]
[1641692291058,1.36209,3102.6,3102.2,0.63231741]
[1641692291258,1.31209,3102.6,3102.2,0.63231741]
[1641692291510,1.31209,3102.6,3102.3,0.00397897]
[1641692291709,1.31209,3102.6,3102.3,1.11914983]
[1641692292112,1.31209,3102.6,3102.4,0.00341054]
[1641692292510,1.31209,3102.6,3102.3,0.00397897]
[1641692292711,1.31209,3102.6,3101.8,8.04387767]
[1641692292712,1.31209,3102.6,3102.1,0.00511581]
[1641692292914,1.0146,3102.6,3102.1,0.00511581]
[1641692293113,1.1062446,3102.4,3101.9,0.00625266]
[1641692293412,0.3,3102.4,3101.8,0.00682108]
[1641692293613,1.3,3102.5,3101.8,0.00682108]
[1641692293811,0.80622,3102.5,3101.8,0.00682108]
[1641692294013,1.80622,3102.5,3101.8,0.00682108]
[1641692294213,0.80628,3102.2,3101.8,0.00682108]
[1641692294615,0.80628,3102.2,3101.5,0.00852635]
[1641692295459,0.07024968,3102.1,3101.5,0.00852635]
[1641692295659,0.07024968,3102.1,3101.3,0.0096632]
[1641692295660,0.80646,3101.8,3101.3,0.0096632]
[1641692295860,1.27146,3101.8,3101.3,0.0096632]
[1641692296061,1.57146,3101.8,3101.6,1.6405802]
[1641692296259,1.57146,3101.8,3101.3,0.0096632]
[1641692296260,4.8,3101.7,3101.3,0.0096632]
[1641692296462,0.80649,3101.6,3100.8,3.8874]
[1641692296660,0.8065,3101.2,3100.8,3.8874]
[1641692296861,1.8054,3101.2,3100.7,4.09223951]
[1641692297163,1.8054,3101.2,3100.8,0.01250532]
[1641692297761,1.8054,3101.2,3100.7,0.01307374]
[1641692298562,1.8054,3101.2,3100.5,0.01421059]
[1641692299416,1.8054,3101.2,3100.6,1.40848574]
[1641692299616,4.03223,3102.0,3100.6,1.40848574]
[1641692299617,5.4722,3102.1,3100.6,1.70848574]
[1641692299919,5.4722,3102.1,3101.7,0.65431184]
[1641692300115,1.27118,3102.6,3101.3,0.80618]
[1641692300318,1.27118,3102.6,3101.8,0.00682108]
[1641692300516,0.465,3102.6,3101.4,0.00909478]
[1641692300717,0.465,3102.6,3101.8,1.41821925]
[1641692300918,2.8057,3103.0,3101.8,1.41821925]
[1641692300919,1.61217,3102.4,3101.8,1.41821925]
[1641692301117,1.61217,3102.4,3101.9,0.00625266]
[1641692302763,0.80608,3102.4,3101.9,0.00625266]
[1641692303359,0.80608,3102.4,3101.8,0.00682108]
[1641692303959,0.80608,3102.4,3101.7,0.00738951]
[1641692304160,0.80608,3102.4,3101.7,0.30738951]
[1641692304360,0.80608,3102.4,3101.7,1.11346951]
[1641692304559,0.80608,3102.4,3101.8,0.00682108]
[1641692304760,0.80608,3102.4,3102.0,1.20001782]
[1641692305163,0.80608,3102.4,3102.1,0.00511581]
[1641692306061,0.80608,3102.4,3102.2,1.63516035]
[1641692306508,0.80608,3102.4,3102.3,0.00397897]
[1641692307208,0.80608,3102.4,3102.2,0.00454739]
[1641692308409,1.61218,3102.5,3102.2,1.63970774]
[1641692308808,1.61218,3102.5,3102.3,0.00397897]
[1641692309409,1.61218,3102.5,3102.2,0.00454739]
[1641692309809,0.80608,3102.4,3102.2,1.63970774]
[1641692310277,0.80608,3102.4,3102.3,0.00397897]
[1641692310669,0.77041613,3102.5,3102.3,0.00397897]
[1641692310869,0.77041613,3102.5,3102.2,0.00454739]
[1641692311669,0.77041613,3102.5,3102.1,0.00511581]
[1641692311868,0.80608,3102.4,3102.1,0.00511581]
[1641692312669,0.80608,3102.4,3102.1,1.64027616]
[1641692312870,0.80608,3102.4,3102.3,1.08158585]
[1641692313270,0.80593,3102.7,3102.3,1.08556482]
[1641692313470,0.80593,3102.7,3102.3,1.68556482]
[1641692313669,0.80593,3102.7,3102.4,0.00341054]
[1641692314110,0.80593,3102.7,3102.5,0.85864398]
[1641692314312,0.80593,3102.7,3102.5,1.63516035]
[1641692314512,0.80593,3102.7,3102.6,0.0022737]
[1641692315315,4.10593,3102.7,3102.6,0.0022737]
[1641692315720,4.10593,3102.7,3102.2,0.00454739]
[1641692316316,4.10593,3102.7,3102.3,1.63516035]
[1641692316518,1.0,3102.6,3102.3,1.63516035]
[1641692316719,5.60624,3102.5,3102.3,1.63516035]
[1641692316918,6.4124459,3102.5,3102.3,1.63516035]
[1641692317119,1.0,3102.4,3102.0,1.63516035]
[1641692317520,1.0,3102.4,3102.1,0.00170527]
[1641692317961,1.61241,3102.3,3102.1,0.00170527]
[1641692319165,1.61241,3102.3,3102.0,0.0022737]
[1641692319664,1.61241,3102.3,3102.0,1.63743405]
[1641692320465,1.61241,3102.3,3102.1,1.63516035]
[1641692320868,1.61241,3102.3,3102.2,0.00113685]
[1641692323225,1.61241,3102.3,3102.2,1.6362972]
[1641692324027,0.80613,3102.4,3102.2,1.6362972]
[1641692324629,1.61241,3102.3,3102.2,0.00113685]
[1641692325027,1.61241,3102.3,3101.6,0.00454739]
[1641692325275,1.61241,3102.3,3102.2,1.63744063]
[1641692325663,1.61241,3102.3,3102.2,1.63857748]
[1641692326166,1.61241,3102.3,3102.2,0.00113685]
[1641692327365,1.61241,3102.3,3101.6,0.00454739]
[1641692327565,1.61241,3102.3,3102.0,1.04463202]
[1641692329814,1.61241,3102.3,3101.6,1.00454739]
[1641692330015,1.61241,3102.3,3101.6,1.60454739]
[1641692330214,1.61241,3102.3,3101.7,1.61615067]
[1641692330416,1.88868994,3102.9,3101.7,0.00397897]
[1641692330417,1.61202,3102.6,3101.7,0.00397897]
[1641692330616,0.80601,3102.3,3101.8,0.00341054]
[1641692330815,1.61315684,3102.6,3101.7,1.00397897]
[1641692331015,1.61315684,3102.6,3102.2,1.44282998]
[1641692331321,0.00113684,3102.6,3102.3,1.1059301]
[1641692331516,0.00113684,3102.6,3102.3,2.0651301]
[1641692331717,0.00113684,3102.6,3102.3,3.0651301]
[1641692332515,0.00113684,3102.6,3102.3,6.54592306]
[1641692332775,0.00113684,3102.6,3102.3,23.9819301]
[1641692332964,0.00113684,3102.6,3102.5,4.81231081]
[1641692332965,3.684e-05,3102.6,3102.5,4.81231081]
[1641692333163,3.684e-05,3102.6,3102.5,26.54331081]
[1641692333363,0.88682455,3104.3,3102.8,0.5]
[1641692333564,1.61117,3104.2,3103.4,0.80553]
[1641692333763,0.00909478,3104.2,3103.7,1.07961]
[1641692333966,0.80553,3104.1,3103.9,0.8055132]
[1641692334163,0.80553,3104.1,3104.0,0.6096191]
[1641692335463,1.69232455,3104.3,3104.0,0.6096191]
[1641692335863,0.00909478,3104.2,3104.0,0.6096191]
[1641692336065,0.00909478,3104.2,3104.0,1.2096191]
[1641692336265,0.00852636,3104.1,3104.0,1.2096191]
[1641692336512,0.00852636,3104.1,3104.0,2.2096191]
[1641692337111,0.00852636,3104.1,3104.0,4.5596191]
[1641692337511,0.00852636,3104.1,3104.0,2.2096191]
[1641692337713,0.00852636,3104.1,3104.0,3.0150991]
[1641692337911,0.00852636,3104.1,3104.0,3.8205191]
[1641692339118,0.00852636,3104.1,3104.0,6.3205191]
[1641692339315,0.88682455,3104.3,3104.2,4.15]
[1641692339515,0.88682455,3104.3,3104.2,5.4681]
[1641692339714,0.88796139,3104.3,3104.2,6.4681]
[1641692340462,0.1232,3106.2,3105.2,1.36056956]
[1641692340663,15.7045,3106.6,3105.7,1.05568483]
[1641692340866,6.16,3106.6,3105.7,1.05568483]
[1641692341463,0.80503,3106.3,3105.8,0.63199693]
[1641692341664,0.80503,3106.3,3105.3,1.6]
[1641692341861,0.80503,3106.3,3105.3,1.3]
[1641692342562,0.80503,3106.3,3105.6,1.08281]
[1641692342764,0.80503,3106.3,3105.9,1.238804]
[1641692342965,0.80496,3106.5,3105.9,1.238804]
[1641692343364,0.0119369,3106.4,3105.9,1.238804]
[1641692343565,0.5668969,3106.5,3105.9,2.6437389]
[1641692343763,0.5668969,3106.5,3106.0,0.0022737]
[1641692344216,0.06998863,3107.0,3106.0,0.0022737]
[1641692344217,0.8049,3106.8,3106.0,0.0022737]
[1641692344614,0.00113684,3106.6,3106.0,0.0022737]
[1641692345018,0.02112547,3107.0,3106.0,0.0022737]
[1641692345215,0.80494,3106.6,3106.0,0.00341054]
[1641692345714,1.40494,3106.6,3105.7,0.00511581]
[1641692345913,0.6,3106.6,3105.7,0.00511581]
[1641692346114,0.4224,3106.7,3105.7,0.00511581]
[1641692346315,0.80521,3106.2,3105.7,0.00511581]
[1641692346516,0.00170527,3106.9,3106.1,1.30503848]
[1641692347015,0.00113685,3106.8,3106.2,0.00227369]
[1641692347416,0.0022737,3107.0,3106.2,0.00227369]
[1641692347616,0.0022737,3107.0,3106.2,0.70824889]
[1641692347870,0.8049,3106.8,3106.2,0.70824889]
[1641692348064,0.8049,3106.8,3106.3,0.00170527]
[1641692348662,0.0022737,3107.0,3106.3,1.0464]
[1641692348864,0.0022737,3107.0,3106.4,0.80476]
[1641692349061,0.0022737,3107.0,3106.7,0.8047275]
[1641692349270,6.16,3107.4,3107.1,0.9356877]
[1641692349465,6.91,3109.2,3107.2,2.50835714]
[1641692349466,3.9011,3109.2,3107.2,2.50835714]
[1641692349666,1.60886,3109.1,3108.3,0.2784]
[1641692349864,1.60886,3109.1,3108.3,1.2038]
[1641692350065,6.16,3109.0,3108.3,1.2038]
[1641692350265,0.7759998,3108.8,3107.4,2.50835714]
[1641692350469,0.80466,3108.0,3107.2,2.50835714]
[1641692350668,0.80466,3108.0,3107.2,3.9814]
[1641692350864,0.00511581,3107.9,3107.2,7.8765604]
[1641692351165,0.6182609,3109.0,3107.7,1.37501019]
[1641692351368,1.0832609,3109.0,3107.7,1.37501019]
[1641692351638,0.00454739,3108.7,3107.7,1.37501019]
[1641692352019,0.465,3109.2,3107.7,1.37501019]
[1641692352420,0.00284212,3109.1,3107.8,0.00454739]
[1641692352621,0.00284212,3109.1,3108.3,0.6866974]
[1641692352824,0.465,3109.2,3107.8,2.38077586]
[1641692352825,0.0022737,3109.0,3107.8,2.38077586]
[1641692353025,0.0022737,3109.0,3108.4,0.00113684]
[1641692353224,0.74139994,3109.6,3108.8,1.41473392]
[1641692353225,0.00170527,3108.9,3108.8,1.41473392]
[1641692353926,0.00170527,3108.9,3108.8,0.62729333]
[1641692354125,0.00170527,3108.9,3108.7,2.96134342]
[1641692354328,0.9356877,3109.9,3108.8,2.50164342]
[1641692354329,0.68274797,3109.9,3108.8,2.50164342]
[1641692354524,0.68274797,3109.9,3108.7,0.4597]
[1641692354525,0.68274797,3109.9,3108.7,3.26134342]
[1641692354725,0.68274797,3109.9,3108.7,0.4597]
[1641692354925,0.68274797,3109.9,3108.5,2.50164342]
[1641692354926,0.80432,3109.3,3108.5,2.50164342]
[1641692355128,0.1216,3110.0,3108.4,2.25]
[1641692355367,0.00170527,3109.2,3108.6,0.00170527]
[1641692355571,0.00170527,3109.2,3108.5,2.50391711]
[1641692355770,0.00113685,3109.1,3108.6,0.00170527]
[1641692355968,0.00113685,3109.1,3108.6,1.00170527]
[1641692356168,0.00625266,3110.0,3108.6,0.00170527]
[1641692356366,0.00625266,3110.0,3108.7,0.00113684]
[1641692356569,1.12297578,3110.1,3110.0,0.00056842]
[1641692356768,1.12297578,3110.1,3108.6,0.00170527]
[1641692356769,4.8,3110.0,3108.6,0.00170527]
[1641692356971,4.8,3110.0,3108.6,0.00738951]
[1641692357168,1.60878,3109.4,3108.6,0.00738951]
[1641692357369,1.60878,3109.4,3108.4,4.10076586]
[1641692357768,1.60878,3109.4,3108.5,0.00795793]
[1641692358371,0.07005686,3109.3,3108.6,1.28341589]
[1641692358569,0.07005686,3109.3,3108.7,0.3]
[1641692358769,2.58911262,3110.1,3108.7,0.00682108]
[1641692359014,2.58911262,3110.1,3108.3,6.49098855]
[1641692359015,1.60878,3109.4,3108.8,0.00625266]
[1641692359216,1.60878,3109.4,3108.4,1.00852635]
[1641692359415,0.8043,3109.5,3108.5,2.45872995]
[1641692359620,0.8043,3109.5,3108.5,3.06668788]
[1641692359816,0.8043,3109.5,3108.6,0.00738951]
[1641692360015,0.8043,3109.5,3108.6,1.00738951]
[1641692360217,0.8043,3109.5,3108.6,0.00738951]
[1641692360416,0.8043,3109.5,3108.7,0.00682108]
[1641692360616,0.8043,3109.5,3108.7,2.4894063]
[1641692360817,0.8043,3109.5,3108.7,0.00682108]
[1641692361015,0.8043,3109.5,3108.8,0.00625266]
[1641692361217,0.8043,3109.5,3108.9,1.10935948]
[1641692361418,1.12411262,3110.1,3109.0,2.4894063]
[1641692361617,0.00113684,3110.1,3109.0,4.08958211]
[1641692361817,0.00113684,3110.1,3109.4,1.16137772]
[1641692362121,0.00113684,3110.1,3109.5,0.0022737]
[1641692362517,0.00113684,3110.1,3109.5,2.51148401]